[Event "Ostravsky Konik FIDE-A 2024"]
[Site "Ostrava"]
[Date "2024.04.30"]
[Round "4.5"]
[White "Swicarz, Maciej"]
[Black "Mrva, Marek"]
[Result "1-0"]
[ECO "A78"]
[WhiteElo "2251"]
[BlackElo "2075"]
[Annotator "NA RC"]
[PlyCount "57"]
[EventDate "2024.04.26"]
[EventType "swiss"]
[EventCountry "CZE"]
[SourceTitle "playchess.com"]
[Source "ChessBase"]
[SourceQuality "1"]
[TimeControl "40/5400+30:1800+30"]

1. d4 {[%emt 0:00:05]} Nf6 {[%emt 0:00:20]} 2. c4 {[%emt 0:00:04]} c5 {[%emt 0:00:15]} 3. d5 {[%emt 0:00:18]} e6 {[%emt 0:00:12]} 4. Nc3 {[%emt 0:00:10]} exd5 {[%emt 0:00:05]} 5. cxd5 {[%emt 0:00:07]} d6 {[%emt 0:00:05]} 6. Nf3 {[%emt 0:02:03]} g6 {[%emt 0:01:35]} 7. Nd2 {[%emt 0:00:26]} Bg7 {[%emt 0:02:03]} 8. e4 {[%emt 0:00:04]} O-O {[%emt 0:01:14]} 9. Be2 {[%emt 0:01:39]} Na6 {[%emt 0:04:26]} 10. O-O {[%emt 0:00:27]} Nc7 {[%emt 0:00:15]} 11. a4 {[%emt 0:00:06]} b6 {[%emt 0:00:53]} 12. Re1 {[%emt 0:00:48]} Re8 {[%emt 0:02:47]} 13. h3 {[%emt 0:00:05]} Rb8 {[%emt 0:05:01]} 14. Bb5 {[%emt 0:00:04]} Nd7 {[%emt 0:08:07]} 15. Nc4 {[%emt 0:01:28]} Qf6 {[%emt 0:01:03]} 16. Be3 {[%emt 0:18:06]} a6 {[%emt 0:10:02]} 17. Bxd7 {[%emt 0:02:22]} Bxd7 {[%emt 0:00:01]} 18. Qd2 {[%emt 0:00:39]} Bf8 {[%emt 0:09:43]} 19. e5 {[%emt 0:11:04]} dxe5 {[%emt 0:02:04]} 20. Bg5 {[%emt 0:00:27]} Qg7 {[%emt 0:02:42]} 21. Ne4 {[%emt 0:00:33]} Bf5 {[%emt 0:18:35]} 22. Nf6+ {[%emt 0:00:45]} Kh8 {[%emt 0:00:02]} 23. d6 {[%emt 0:03:31]} Rec8 {[%emt 0:05:43]} 24. dxc7 {[%emt 0:02:54]} Rxc7 {[%emt 0:00:02]} 25. Nd5 {[%emt 0:00:41]} Rc6 {[%emt 0:00:13]} 26. Nxe5 {[%emt 0:00:36]} Rd6 {[%emt 0:00:44]} 27. Nc4 {[%emt 0:01:26]} Rc6 {[%emt 0:01:54]} 28. Qf4 {[%emt 0:00:24]} Rb7 {[%emt 0:05:23]} 29. Re8 {[%emt 0:53:38]} 1-0

[Event "Ostravsky Konik FIDE-A 2024"]
[Site "Ostrava"]
[Date "2024.04.30"]
[Round "4.6"]
[White "Mannion, Stephen R"]
[Black "Meers, Hubert"]
[Result "1/2-1/2"]
[ECO "B42"]
[WhiteElo "2159"]
[BlackElo "2250"]
[Annotator "TA"]
[PlyCount "58"]
[EventDate "2024.04.26"]
[EventType "swiss"]
[EventCountry "CZE"]
[SourceTitle "playchess.com"]
[Source "ChessBase"]
[SourceQuality "1"]
[TimeControl "40/5400+30:1800+30"]

{[%evp 17,58,33,42,25,35,26,49,37,45,39,57,52,71,67,91,34,89,55,87,66,87,60,55,41,25,5,20,16,12,17,25,0,0,0,0,0,0,0,0,0,63,-23,-1]} 1. e4 {[%emt 1:31:00]} c5 {[%emt 1:31:00]} 2. Nf3 {[%emt 0:00:30]} e6 {[%emt 0:00:30]} 3. d4 {[%emt 0:00:30]} cxd4 {[%emt 0:00:30]} 4. Nxd4 {[%emt 0:00:30]} a6 {[%emt 0:00:30]} 5. Bd3 {[%emt 0:00:30]} Bc5 {[%emt 0:00:30]} 6. Nb3 {[%emt 0:00:30]} Ba7 {[%emt 0:00:30]} 7. Qe2 {[%emt 0:00:30]} Nc6 8. Be3 d6 9. O-O {[%emt 0:01:00]} Nf6 {[%emt 0:01:30][%cal Bg8f6,Bf6d7,Bd7c5,Bc5a4,Ba4c3][%mdl 32]} 10. c4 {[%emt 0:00:30]} O-O {[%emt 0:00:30]} 11. Nc3 {[%emt 0:00:30]} Qc7 {[%emt 0:00:30]} 12. Bxa7 {[%emt 0:00:30] White is slightly better.} Rxa7 {[%emt 0:00:30]} 13. Rad1 {[%emt 0:00:30]} Nd7 {[%emt 0:00:30]} 14. Qe3 {[%emt 0:00:30]} b6 {[%emt 0:00:30]} 15. Be2 {[%emt 0:00:30] White is more active.} Nc5 {[%emt 0:00:30]} 16. Rd2 {[%emt 0:00:30]} (16. Nd4 $16) 16... Qb8 {[%emt 0:00:30]} (16... Nxb3 $14 17. axb3 h6) 17. Rfd1 Rd7 18. Nd4 Bb7 {[%cal Bc8b7,Bb7c6,Bc6a4][%mdl 32]} 19. Nxc6 Bxc6 20. b4 Na4 21. e5 {[%cal Rd2d6]} Nxc3 22. Qxc3 {[%cal Rd2d6]} Ba4 23. Rc1 {Hoping for b5.} dxe5 24. Rxd7 Bxd7 25. c5 bxc5 26. bxc5 {[%cal Oc5c6]} Bc6 {[%cal Oa6a5]} 27. Bxa6 {[%cal Oa2a4]} Qa8 {[%csl LRa6,LRg2]} 28. Bf1 e4 (28... Qxa2 $11 29. Qxe5 Rc8) 29. Bc4 (29. a4 $1 $14) 29... Rd8 {Weighted Error Value: White=0.17 (very precise) /Black=0.17 (very precise) .  Mistake:       	White=2     	Black=2      Inaccurate:     	White=2     	---        OK:         	White=7     	Black=8      Best:        	---       	Black=2} 1/2-1/2

[Event "Ostravsky Konik FIDE-A 2024"]
[Site "Ostrava"]
[Date "2024.04.30"]
[Round "4.7"]
[White "Goluch, Piotr"]
[Black "Vrnata, Jiri"]
[Result "1-0"]
[ECO "A42"]
[WhiteElo "2325"]
[BlackElo "2057"]
[Annotator "TA"]
[PlyCount "75"]
[EventDate "2024.04.26"]
[EventType "swiss"]
[EventCountry "CZE"]
[SourceTitle "playchess.com"]
[Source "ChessBase"]
[SourceQuality "1"]
[TimeControl "40/5400+30:1800+30"]

{[%evp 10,75,63,60,64,61,67,54,149,78,64,62,112,108,101,61,63,72,143,145,227,221,210,206,330,307,290,263,268,280,278,264,274,257,243,251,286,315,329,314,305,238,293,293,284,295,285,292,294,289,339,281,360,351,438,441,469,478,475,489,462,453,842,507,1329,1187,1325,1314]} 1. d4 {[%emt 1:31:00]} g6 2. c4 d6 3. Nc3 Bg7 4. Nf3 Nd7 5. e4 c6 6. Be3 {[%emt 0:02:30]} a6 {[%emt 1:33:30]} 7. Be2 Ngf6 8. h3 b5 {[%emt 0:01:00]} (8... e5 $14) 9. cxb5 (9. e5 $142) 9... axb5 $16 10. e5 dxe5 {[%emt 0:01:00]} (10... Nd5 $14) 11. dxe5 Ng8 {Black is weak on the dark squares} 12. Qd4 {White is more active.} Qc7 {[%emt 0:01:00]} 13. Bf4 Qb6 {White leaves nothing to chance now.} (13... Nf8 $142) 14. Qd2 {aiming for 0-0.} Nf8 (14... Qa5 $16 15. Rd1 h5) 15. O-O {[%emt 0:04:30]} Ne6 {[%emt 0:01:30]} 16. Be3 {[%emt 0:00:30]} Qb7 {[%emt 0:00:30]} (16... Qd8 {was called for.} 17. Qxd8+ Kxd8 18. Rfd1+ (18. a4 bxa4 19. Bd3 Nh6 $18) 18... Kc7) 17. Rfd1 {[%emt 0:00:30]} h5 {[%emt 0:00:30]} 18. Nd4 {[%emt 0:00:30]} Bd7 {[%emt 0:00:30]} 19. a4 {[%emt 0:00:30] [#] And now Nxe6 would win.} b4 {[%emt 0:00:30]} 20. Ne4 {[%emt 0:00:30][%cal Bc3e4,Be4c5,Bc5a6][%mdl 32] Bc4 is the strong threat.} Bxe5 {[%emt 0:00:30]} 21. Nxe6 {[%emt 0:00:30]} Bxe6 {[%emt 0:00:30]} 22. Nc5 {[%emt 0:00:30]} Qc8 {[%emt 0:00:30] [#]} 23. Ba6 $1 {[%emt 0:00:30][%mdl 512]} Rxa6 {[%emt 0:00:30]} (23... Qc7 24. Bb7) 24. Nxa6 {[%emt 0:00:30]} Nf6 {[%emt 0:00:30]} 25. Nc5 $40 {[%emt 0:00:30][%cal Oc5e6][%mdl 128] Prevents Bb3. White has strong attack.} O-O {[%emt 0:00:30]} 26. Bf4 {[%emt 0:00:30]} (26. Qxb4 $6 Bxh3 27. Nd3 (27. gxh3 Qxh3 28. Bf4 Qg4+ 29. Kf1 Bxf4 $17) 27... Bc7 $16) 26... Bxf4 {[%emt 0:00:30]} 27. Qxf4 {[%emt 0:00:30]} Nd5 28. Qe5 {[%emt 0:00:30] Nxe6 would now be deadly.} Bf5 {[%emt 0:01:00]} 29. a5 {[%emt 0:00:30][%cal Ba4a5,Ba5a6][%mdl 32]} f6 {[%emt 0:00:30]} 30. Qg3 {[%emt 0:00:30]} e5 {[%emt 0:00:30]} 31. a6 {[%emt 0:00:30]} Rf7 {[%emt 0:00:30]} 32. Qb3 {[%emt 0:00:30] Strongly threatening Rxd5. White is clearly winning.} ({Not} 32. a7 Qa8 $16) 32... Qa8 {[%emt 0:00:30]} 33. Ra4 {[%emt 0:00:30]} Kg7 {[%emt 0:00:30]} 34. Rxb4 {[%emt 0:00:30]} Nxb4 {[%emt 0:00:30]} 35. Qxb4 {[%emt 0:00:30] Hoping for g4.} g5 {[%emt 0:00:30]} (35... e4 $142 36. Rd6 (36. Nxe4 Bxe4 37. Qxe4 Qxa6 $11) 36... g5) 36. Qb6 {[%emt 0:00:30]} Qf8 {[%emt 0:00:30]} (36... Qa7 $142 37. Qxc6 Rf8 38. Qb7+ (38. b4 Qf7 $18) 38... Qxb7 39. axb7 Rb8) 37. Rd8 $18 {[%emt 0:00:30]} Qe7 {[%emt 0:00:30]} 38. Nb7 {[%emt 0:00:30] Weighted Error Value: White=0.24 (precise) /Black=0.35.  Mistake:       	White=1     	Black=7      Inaccurate:     	White=2     	---        OK:         	White=11    	Black=11     Best:        	White=1     	Black=1} 1-0

[Event "Ostravsky Konik FIDE-A 2024"]
[Site "Ostrava"]
[Date "2024.05.01"]
[Round "5.1"]
[White "Nguyen, Piotr"]
[Black "Decuigniere, Tom"]
[Result "1/2-1/2"]
[ECO "D44"]
[WhiteElo "2398"]
[BlackElo "2401"]
[Annotator "TA"]
[PlyCount "104"]
[EventDate "2024.04.26"]
[EventType "swiss"]
[EventCountry "CZE"]
[SourceTitle "playchess.com"]
[Source "ChessBase"]
[SourceQuality "1"]
[TimeControl "40/5400+30:1800+30"]

{[%evp 24,104,41,44,69,67,68,52,99,91,91,94,79,89,87,39,309,288,307,304,239,129,144,120,101,142,102,43,152,152,206,79,218,219,170,204,206,196,204,165,152,141,127,76,77,101,91,42,113,73,90,14,10,8,10,0,0,0,0,0,0,0,38,23,30,28,23,0,0,0,0,0,0,0,0,0,0,0,0,0,8,8,8]} 1. d4 {[%emt 0:00:10]} d5 {[%emt 0:00:06]} 2. c4 {[%emt 0:00:05]} c6 {[%emt 0:00:05]} 3. Nf3 {[%emt 0:00:05]} Nf6 {[%emt 0:00:05]} 4. Nc3 {[%emt 0:00:05]} e6 {[%emt 0:00:05]} 5. Bg5 {[%emt 0:00:04]} dxc4 {[%emt 0:00:44]} 6. e4 {[%emt 0:00:10][%cal Be2e4,Be4e5][%mdl 32]} b5 {[%emt 0:00:13]} 7. e5 {[%emt 0:00:06]} h6 {[%emt 0:00:36]} 8. Bh4 {[%emt 0:00:10]} g5 {[%emt 0:00:07]} 9. Nxg5 {[%emt 0:00:09]} hxg5 {[%emt 0:00:11]} 10. Bxg5 {[%emt 0:00:05]} Nbd7 {[%emt 0:00:20]} 11. g3 {[%emt 0:00:15]} Bb7 {[%emt 0:00:26]} 12. Bg2 {[%emt 0:00:08]} Qb6 {[%emt 0:00:56]} 13. exf6 {[%emt 0:00:10]} (13. Bxf6 Nxf6 14. exf6 O-O-O $11) 13... c5 {[%emt 0:00:11]} 14. dxc5 {[%emt 0:05:18]} (14. d5 $5 O-O-O 15. O-O $14) 14... Bxc5 {[%emt 0:05:02]} 15. O-O {[%emt 0:06:38]} O-O-O {[%emt 0:11:15]} (15... Ne5 $14) 16. Qe2 $16 {[%emt 0:01:37]} Bd4 {[%emt 0:14:54]} 17. a4 {[%emt 0:10:04] aiming for Bxb7+.} a6 {[%emt 0:01:09]} 18. axb5 {[%emt 0:01:28]} axb5 {[%emt 0:00:06]} 19. Be3 {[%emt 0:20:30]} (19. h4 $16) 19... Nc5 $2 {[%emt 0:08:30][%mdl 8192]} (19... Bxg2 $14 20. Kxg2 Qc6+ 21. f3 Bxe3 22. Qxe3 Nxf6) 20. Bxd4 $1 $18 {[%emt 0:03:25]} Rxd4 {[%emt 0:02:15]} 21. Bxb7+ {[%emt 0:00:15]} Kxb7 {[%emt 0:01:44]} 22. Qf3+ {[%emt 0:02:58]} (22. Ra2 $18) 22... Qc6 $16 {[%emt 0:01:06] [#]} 23. Ra7+ $3 {[%emt 0:00:34][%mdl 512]} Kb6 {[%emt 0:00:06]} 24. Qxc6+ {[%emt 0:02:47]} Kxc6 {[%emt 0:00:01]} 25. Rxf7 {[%emt 0:02:09]} (25. Rc7+ $1 $16 Kb6 26. Rxf7) 25... b4 {[%emt 0:09:20]} (25... Rd2 $1 $14) 26. Nd1 $1 {[%emt 0:00:36]} Nd3 {[%emt 0:10:01] [#]} (26... b3 $16 27. h4 Nd3) 27. h4 {[%emt 0:05:09]} (27. Ne3 $1 $18 {has better winning chances.}) 27... Re4 {[%emt 0:15:06]} (27... Rd7 $16 28. Rg7 Rxg7 29. fxg7 Rg8) 28. Kg2 {[%emt 0:08:03]} Ne1+ {[%emt 0:19:50]} 29. Kh3 {[%emt 0:06:27]} Nf3 {[%emt 0:00:00] [#]} 30. Rg7 {[%emt 0:00:24] Dodges Ng5+} Rf8 {[%emt 0:00:00]} 31. f7 {[%emt 0:03:37]} Ne5 {[%emt 0:00:00]} 32. Ne3 {[%emt 0:01:18]} Nxf7 {[%emt 0:00:00]} 33. Rg4 {[%emt 0:03:08]} (33. Ra1 $142) 33... Rxg4 {[%emt 0:00:00]} 34. Nxg4 {[%emt 0:00:01][%mdl 4096] Endgame. KRN-KRN} Kc5 {[%emt 0:00:00]} 35. Re1 {[%emt 0:03:02]} (35. Rc1 $16) 35... Kd6 {[%emt 0:01:27]} (35... c3 $14) 36. f4 {[%emt 0:03:48] White is more active.} Rc8 {[%emt 0:00:36]} 37. Ne3 {[%emt 0:03:46]} ({Better is} 37. Kg2 $16) 37... c3 $11 {[%emt 0:01:03]} 38. bxc3 {[%emt 0:00:02]} Rxc3 {[%emt 0:00:25]} 39. f5 {[%emt 0:02:57]} exf5 {[%emt 0:00:31]} 40. Nxf5+ {[%emt 0:00:06]} Kd5 {[%emt 0:00:30]} 41. Re7 {[%emt 0:33:49]} Ne5 {[%emt 0:02:34]} 42. Rb7 {[%emt 0:00:00]} b3 {[%emt 0:02:04]} (42... Kc5 $5) 43. h5 {[%emt 0:00:00]} Ke4 {[%emt 0:18:48]} 44. Nh4 {[%emt 0:00:00]} Nd3 {[%emt 0:04:39]} 45. Ng6 {[%emt 0:00:00] Black must now prevent h6.} b2 {[%emt 0:00:47] The position is equal.} 46. h6 {[%emt 0:00:00] h7 would now be deadly.} Rc1 {[%emt 0:00:35]} 47. Kg2 {[%emt 0:00:00] Hoping for h7.} ({Avoid the trap} 47. h7 $2 Rh1+ 48. Kg2 Rxh7 $19 (48... b1=R 49. Rxb1 Rxh7 50. Rf1 $14)) 47... b1=Q {[%emt 0:02:06]} (47... b1=B $2 {perishes.} 48. h7 Ne1+ 49. Kh3 $18) 48. Rxb1 {[%emt 0:00:00]} Rxb1 {[%emt 0:00:16]} 49. h7 {[%emt 0:00:00]} Rb8 {[%emt 0:01:02]} 50. h8=Q {[%emt 0:00:00]} Rxh8 {[%emt 0:00:14]} 51. Nxh8 {[%emt 0:10:22]} Nf4+ {[%emt 0:00:37]} 52. gxf4 {[%emt 0:00:00]} Kxf4 {[%emt 0:03:46] Black escapes into a draw.   Weighted Error Value: White=0.19 (very precise) /Black=0.29 (precise) .  Loses game:     	---       	Black=1      Mistake:       	White=7     	Black=5      Inaccurate:     	White=1     	Black=1      OK:         	White=13    	Black=11     Best:        	White=3     	Black=8      Strong:       	White=2     	---        Brilliant:      	White=1     	---} 1/2-1/2

[Event "Ostravsky Konik FIDE-A 2024"]
[Site "Ostrava"]
[Date "2024.05.01"]
[Round "5.2"]
[White "Sernecki, Franciszek"]
[Black "Swicarz, Maciej"]
[Result "0-1"]
[ECO "D85"]
[WhiteElo "2342"]
[BlackElo "2251"]
[Annotator "TA"]
[PlyCount "136"]
[EventDate "2024.04.26"]
[EventType "swiss"]
[EventCountry "CZE"]
[SourceTitle "playchess.com"]
[Source "ChessBase"]
[SourceQuality "1"]
[TimeControl "40/5400+30:1800+30"]

{[%evp 29,135,54,51,52,73,93,127,122,130,116,131,137,128,138,147,140,148,139,141,110,134,104,104,81,138,133,144,136,181,130,127,113,122,45,56,0,0,0,0,0,0,-4,0,0,0,0,0,0,0,0,0,0,0,0,0,0,0,0,0,-12,-12,-24,-2,-23,-28,-30,-28,-47,-47,-96,-99,-107,-71,-77,-66,-71,-71,-436,-436,-436,-435,-441,-412,-689,-643,-675,-692,-678,-653,-725,-683,-658,-406,-367,-169,-29979,-29980,-29980,-29981,-29981,-29982,-29982,-29983,-29983,-29984,-29986,-29987,-29986]} 1. d4 {[%emt 0:00:37]} Nf6 {[%emt 0:00:04]} 2. c4 {[%emt 0:00:08]} g6 {[%emt 0:00:55]} 3. Nc3 {[%emt 0:00:07]} d5 {[%emt 0:00:07]} 4. cxd5 {[%emt 0:00:37]} Nxd5 {[%emt 0:00:04]} 5. e4 {[%emt 0:00:13]} Nxc3 {[%emt 0:00:05]} 6. bxc3 {[%emt 0:00:03]} Bg7 {[%emt 0:00:12]} 7. Nf3 {[%emt 0:00:05]} c5 {[%emt 0:00:20]} 8. Bb5+ {[%emt 0:00:07]} Bd7 {[%emt 0:00:52]} 9. Be2 {[%emt 0:01:45]} O-O {[%emt 0:01:04]} 10. O-O {[%emt 0:02:31]} Bg4 {[%emt 0:01:51] D85: Exchange Grünfeld: Unusual White 7th moves and lines with 7 Nf3.} 11. Be3 {[%emt 0:07:24]} Qc7 {[%emt 0:02:34]} 12. Rc1 {[%emt 1:22:53]} Nd7 {[%emt 0:11:21]} 13. Qb3 {[%emt 0:00:00]} e5 {[%emt 0:06:28]} 14. Rfd1 {[%emt 0:00:00]} b6 {[%emt 0:02:15]} 15. h3 {[%emt 0:00:00]} Bxf3 {[%emt 0:01:43]} 16. Bxf3 {[%emt 0:00:00]} Rad8 {[%emt 0:04:39]} 17. a4 {[%emt 0:00:00]} Qb8 $146 {[%emt 0:07:24]} ({Predecessor:} 17... Rfe8 18. Qb5 c4 19. d5 Nf6 20. a5 Rd6 21. axb6 axb6 22. Rb1 Rb8 23. Rb4 Rc8 24. Bxb6 Qd7 {1-0 Taboas Rodriguez,D (2359)-Pina Sierra,J (2061) Madrid-chT Honor 2009 (11)}) 18. d5 {[%emt 0:00:00]} f5 {[%emt 0:08:29]} 19. Rb1 {[%emt 0:00:00]} Qd6 {[%emt 0:03:23]} 20. a5 {[%emt 0:00:00]} Rb8 {[%emt 0:01:21]} 21. Qa4 {[%emt 0:00:00]} Rfc8 {[%emt 0:02:46]} 22. Be2 {[%emt 0:00:00]} Nf6 {[%emt 0:01:25]} 23. f3 {[%emt 0:00:00]} Bf8 {[%emt 0:05:57]} 24. Ba6 {[%emt 0:00:00]} Rc7 {[%emt 0:02:06]} 25. Qc4 {[%emt 0:00:00]} Kh8 {[%emt 0:02:52]} 26. Bb5 {[%emt 0:00:00]} f4 {[%emt 0:02:20]} (26... bxa5 $142 27. Ba4 Rxb1 28. Rxb1 Rf7) 27. Bf2 $16 {[%emt 0:00:00]} g5 {[%emt 0:00:09]} 28. Bc6 {[%emt 0:00:00]} Qd8 {[%emt 0:12:08]} 29. axb6 {[%emt 0:00:00]} ({White should play} 29. Qa6 $18) 29... axb6 $16 {[%emt 0:00:07]} 30. Qa6 {[%emt 0:00:00]} Rg7 {[%emt 0:01:41] [#]} 31. d6 {[%emt 0:03:08]} ({White should try} 31. Kf1 $1 $16 {[%mdl 512]}) 31... Bxd6 $14 {[%emt 0:01:22]} 32. Qd3 {[%emt 0:00:51]} ({Better is} 32. Rd2 $14 Qc7 33. Rdb2) 32... Bc7 $11 {[%emt 0:00:54]} 33. Qc4 {[%emt 0:00:49]} Qe7 {[%emt 0:00:55]} 34. Rd3 {[%emt 0:00:46]} h5 {[%emt 0:01:52]} 35. Rbd1 {[%emt 0:00:18]} Rd8 {[%emt 0:02:42]} 36. Rxd8+ {[%emt 0:02:43]} Bxd8 {[%emt 0:00:02]} 37. Qa6 {[%emt 0:01:40]} Qc7 {[%emt 0:05:57]} 38. Qa8 {[%emt 0:00:52]} Rg8 {[%emt 0:00:05]} 39. Bd5 {[%emt 0:00:29]} Rf8 {[%emt 0:05:35]} 40. Be6 {[%emt 0:01:24]} Be7 {[%emt 0:04:24]} 41. Qa2 {[%emt 0:05:34]} Rd8 {[%emt 0:30:30]} 42. Ra1 {[%emt 0:02:27]} Rd6 {[%emt 0:00:00]} 43. Qa8+ {[%emt 0:01:52]} Qd8 {[%emt 0:00:00]} 44. Qxd8+ {[%emt 0:00:56]} Bxd8 {[%emt 0:00:00]} 45. Bc4 {[%emt 0:00:25]} Kg7 {[%emt 0:00:00]} 46. Kf1 {[%emt 0:00:29]} g4 {[%emt 0:00:00]} 47. hxg4 {[%emt 0:01:47]} hxg4 {[%emt 0:00:00]} 48. Ke2 {[%emt 0:00:30]} g3 {[%emt 0:00:00]} 49. Be1 {[%emt 0:00:23]} (49. Ra7+ $15 {should be considered.} Rd7 50. Rxd7+ Nxd7 51. Be1) 49... Ne8 $1 $17 {[%emt 0:00:00]} 50. Bd5 {[%emt 0:03:10]} Nc7 {[%emt 0:00:00]} 51. c4 {[%emt 0:00:31]} Rh6 $1 {[%emt 0:00:00]} 52. Bc3 {[%emt 0:01:18]} Kf6 {[%emt 0:00:00]} 53. Rb1 $2 {[%emt 0:00:25][%mdl 8192]} (53. Kd3 $17 {is more resistant.}) 53... Nxd5 $1 $19 {[%emt 0:00:00]} 54. exd5 {[%emt 0:00:09]} Rh2 {[%emt 0:00:00]} 55. Rg1 {[%emt 0:00:10]} b5 {[%emt 0:00:00]} 56. Kd3 {[%emt 0:08:00]} (56. cxb5 $142 c4 57. Kd1) 56... b4 $19 {[%emt 0:00:00]} 57. Bb2 {[%emt 0:00:45]} Kf5 {[%emt 0:00:00]} 58. Bc1 {[%emt 0:00:17]} Bf6 {[%emt 0:00:00]} 59. Bb2 {[%emt 0:00:10]} Bg7 {[%emt 0:00:00]} 60. Ba1 {[%emt 0:00:30]} Rh8 {[%emt 0:00:10]} 61. Bb2 {[%emt 0:00:17]} Ra8 {[%emt 0:02:42]} (61... Rh4 $142 {White must now prevent ...Rh8.} 62. Re1 Rh2) 62. Ra1 $2 {[%emt 0:01:34] [#]} (62. Re1 $19) 62... Rxa1 $1 {[%emt 0:02:04]} 63. Bxa1 {[%emt 0:00:01]} e4+ {[%emt 0:00:44]} 64. fxe4+ {[%emt 0:00:01]} Kg6 {[%emt 0:00:47]} 65. e5 {[%emt 0:00:42] [#]} f3 $1 {[%emt 0:00:22]} (65... Kf5 66. d6 (66. e6 $2 Bf6 $19) 66... f3 (66... Bxe5 $2 67. Bxe5 Ke6 68. Bxf4 $18) 67. d7 fxg2 68. d8=Q $11) 66. d6 {[%emt 0:00:01]} Kf7 {[%emt 0:03:58]} 67. d7 {[%emt 0:01:36]} Ke7 {[%emt 0:00:03]} ({Weaker is} 67... fxg2 68. d8=Q g1=Q (68... g1=R 69. e6+ Kg6 70. Qe8+ Kg5 71. Qe7+ Kh5 72. Qxg7 Rd1+ 73. Ke2) 69. Qd7+ (69. e6+ Kxe6 70. Qe8+ Kd6 $11) 69... Kf8 70. Qc8+ Ke7 71. Qb7+ Kf8 72. Qc8+ Ke7 73. Qb7+ Kf8 74. Qc8+ $11) 68. gxf3 {[%emt 0:00:16]} g2 {[%emt 0:00:08]} 0-1

[Event "Ostravsky Konik FIDE-A 2024"]
[Site "Ostrava"]
[Date "2024.05.01"]
[Round "5.3"]
[White "Bujnoch, Radek"]
[Black "Sobek, Jaroslav"]
[Result "1-0"]
[ECO "D45"]
[WhiteElo "2307"]
[BlackElo "2201"]
[Annotator "RC"]
[PlyCount "122"]
[EventDate "2024.04.26"]
[EventType "swiss"]
[EventCountry "CZE"]
[SourceTitle "playchess.com"]
[Source "ChessBase"]
[SourceQuality "1"]
[TimeControl "40/5400+30:1800+30"]

1. d4 {[%emt 0:01:07]} d5 {[%emt 0:00:28]} 2. c4 {[%emt 0:00:06]} c6 {[%emt 0:00:11]} 3. Nc3 {[%emt 0:00:11]} e6 {[%emt 0:00:53]} 4. e3 {[%emt 0:00:11]} Nf6 {[%emt 0:00:09]} 5. Nf3 {[%emt 0:00:10]} Nbd7 {[%emt 0:00:27]} 6. Be2 {[%emt 0:00:24]} Bd6 {[%emt 0:00:32]} 7. O-O {[%emt 0:00:11]} O-O {[%emt 0:00:27]} 8. b3 {[%emt 0:00:07]} b6 {[%emt 0:00:24]} 9. Bb2 {[%emt 0:00:05]} Bb7 {[%emt 0:00:06]} 10. Bd3 {[%emt 0:00:08]} Re8 {[%emt 0:08:05]} 11. Re1 {[%emt 0:00:06]} Rc8 {[%emt 0:08:29]} 12. Rc1 {[%emt 0:00:07]} Qe7 {[%emt 0:03:30]} 13. e4 {[%emt 0:00:40]} dxc4 {[%emt 0:00:08]} 14. bxc4 {[%emt 0:04:05]} e5 {[%emt 0:00:30]} 15. d5 {[%emt 0:03:54]} Ba3 {[%emt 0:10:23]} 16. Bxa3 {[%emt 0:16:38]} Qxa3 {[%emt 0:00:19]} 17. Qb3 {[%emt 0:05:23]} Qa5 {[%emt 0:09:45]} 18. Nd2 {[%emt 0:13:11]} Ba6 {[%emt 0:04:28]} 19. Bf1 {[%emt 0:07:47]} Red8 {[%emt 0:18:40]} 20. a3 {[%emt 0:00:54]} Bb7 {[%emt 0:09:00]} 21. Qb4 {[%emt 0:08:37]} Qc5 {[%emt 0:00:18]} 22. Nb3 {[%emt 0:02:39]} Qf8 {[%emt 0:00:45]} 23. Qxf8+ {[%emt 0:01:55]} Kxf8 {[%emt 0:00:21]} 24. f3 {[%emt 0:06:40]} Ne8 {[%emt 0:05:28]} 25. Red1 {[%emt 0:00:58]} cxd5 {[%emt 0:00:51]} 26. cxd5 {[%emt 0:00:20]} Nc5 {[%emt 0:05:46]} 27. Nxc5 {[%emt 0:00:28]} Rxc5 {[%emt 0:00:01]} 28. Nb5 {[%emt 0:00:59]} Rxc1 {[%emt 0:00:48]} 29. Rxc1 {[%emt 0:00:08]} a6 {[%emt 0:00:07]} 30. Nc3 {[%emt 0:03:39]} Rc8 {[%emt 0:00:12]} 31. Kf2 {[%emt 0:04:28]} Nd6 {[%emt 0:05:56]} 32. Ke3 {[%emt 0:01:17]} b5 {[%emt 0:09:03]} 33. Kd2 {[%emt 0:19:27]} Rc5 {[%emt 0:00:00]} 34. Na2 {[%emt 0:00:00]} Rxc1 {[%emt 0:00:00]} 35. Nxc1 {[%emt 0:00:00]} f5 {[%emt 0:00:00]} 36. Bd3 {[%emt 0:00:00]} fxe4 {[%emt 0:00:00]} 37. fxe4 {[%emt 0:00:00]} Bc8 {[%emt 0:01:07]} 38. Kc3 {[%emt 0:00:00]} Ke7 {[%emt 0:00:11]} 39. Nb3 {[%emt 0:00:00]} Nb7 {[%emt 0:00:41]} 40. Kb4 {[%emt 0:00:00]} Kd6 {[%emt 0:00:52]} 41. a4 {[%emt 0:29:25]} bxa4 {[%emt 0:06:19]} 42. Kxa4 {[%emt 0:00:00]} Nc5+ {[%emt 0:04:27]} 43. Nxc5 {[%emt 0:00:00]} Kxc5 {[%emt 0:00:01]} 44. Ka5 {[%emt 0:00:00]} g5 {[%emt 0:07:10]} 45. Bxa6 {[%emt 0:00:00]} Bd7 {[%emt 0:00:35]} 46. Bd3 {[%emt 0:00:00]} Bc8 {[%emt 0:00:23]} 47. g3 {[%emt 0:00:00]} Kd4 {[%emt 0:01:12]} 48. Bc2 {[%emt 0:00:00]} Kc3 {[%emt 0:01:52]} 49. Bb1 {[%emt 0:00:00]} Kb2 {[%emt 0:00:45]} 50. Bd3 {[%emt 0:00:00]} Kc3 {[%emt 0:00:06]} 51. Ba6 {[%emt 0:00:00]} Bg4 {[%emt 0:00:16]} 52. d6 {[%emt 0:00:00]} Kd4 {[%emt 0:00:12]} 53. Kb6 {[%emt 0:00:00]} Kxe4 {[%emt 0:01:07]} 54. Kc7 {[%emt 0:00:00]} Kd5 {[%emt 0:00:33]} 55. Bb7+ {[%emt 0:00:00]} Kc5 {[%emt 0:00:31]} 56. d7 {[%emt 0:00:00]} Bxd7 {[%emt 0:00:06]} 57. Kxd7 {[%emt 0:00:00]} Kd4 {[%emt 0:00:06]} 58. Ke6 {[%emt 0:00:00]} e4 {[%emt 0:00:01]} 59. Kf5 {[%emt 0:00:00]} e3 {[%emt 0:00:12]} 60. Ba6 {[%emt 0:00:00]} h6 {[%emt 0:00:30]} 61. Kg6 {[%emt 0:00:00]} Kd5 {[%emt 0:15:15]} 1-0